Cogmind - Beta 17 @@@ ROGUE MODE // 2026.07.25 @ 15:55:21 // Winter2019/RPGLIKE Player: Gallgagger Result: Self-destructed Performance ------------- Evolutions (1) 500 Regions Visited (5) 1000 Robots Destroyed (23) 115 Value Destroyed (534) 534 Prototype IDs (25) 500 Alien Tech Used (0) 0 Bonus (418) 418 TOTAL SCORE: 3067 Bonus ------- Pacifist 200 Follower Combat Kills 14 Aligned with FarCom 300 Friendly Fire -96 Cogmind --------- Core Integrity 260/1250 Matter 300/300 Energy 99/100 System Corruption 0% Temperature Cool (2) Movement Flying (37) Location -8/Mines Parts ------- > --- POWER (1) -------- (None) > --- PROPULSION (2) --- Improved Flight Unit Improved Flight Unit > --- UTILITY (1) ------ Cloak of Protection > --- WEAPON (3) ------- Guided Plasma Cannon 12-ASH's Boomstick Katana > --- INVENTORY (0) ---- (None) Peak State ------------ > --- POWER ------------ (None) > --- PROPULSION ------- Improved Flight Unit Improved Flight Unit > --- UTILITY ---------- Cloak of Protection > --- WEAPON ----------- Guided Plasma Cannon YOLO Cannon > --- INVENTORY -------- (None) [Rating: 42] Favorites ----------- Power None Propulsion Improved Flight Unit Flight Unit Improved Flight Unit Utility Visual Processing Unit Device Cloak of Protection Processor Visual Processing Unit Weapon Mace Energy Cannon Guided Plasma Cannon Ballistic Gun 12-ASH's Boomstick Impact Weapon Mace Slashing Weapon Katana Build | -11 -10 -9 -9 -9 -8 ------- Run | Yrd Mat Mat Min Exi Min Slots Evolved 3 | . . 1 . 2 . Power . | . . . . . . Propulsion 1 | . . 1 . . . Utility . | . . . . . . Weapon 2 | . . . . 2 . Parts Attached 10 | . . 5 . 3 2 Power . | . . . . . . Engine . | . . . . . . Core . | . . . . . . Reactor . | . . . . . . Propulsion 2 | . . 2 . . . Treads . | . . . . . . Leg . | . . . . . . Wheel . | . . . . . . Hover . | . . . . . . Flight 2 | . . 2 . . . Utility 2 | . . 1 . 1 . Device 1 | . . . . 1 . Storage . | . . . . . . Processor 1 | . . 1 . . . Hackware . | . . . . . . Protection . | . . . . . . Artifact . | . . . . . . Weapon 6 | . . 2 . 2 2 Energy Gun . | . . . . . . Energy Cannon 2 | . . . . 2 . Ballistic Gun 1 | . . . . . 1 Ballistic Cannon . | . . . . . . Launcher . | . . . . . . Special Weapon . | . . . . . . Impact Weapon 2 | . . 2 . . . Slashing Weapon 1 | . . . . . 1 Piercing Weapon . | . . . . . . Special Melee Weapon . | . . . . . . Unidentified Prototypes 2 | . . 1 . . 1 Parts Lost . | . . . . . . Power . | . . . . . . Propulsion . | . . . . . . Utility . | . . . . . . Weapon . | . . . . . . Highest Loss Streak . | . . . . . . To Critical Strikes . | . . . . . . Average Backups . | . . . . . . Power . | . . . . . . Propulsion . | . . . . . . Utility . | . . . . . . Weapon . | . . . . . . Tool/Special . | . . . . . . Unused Backups . | . . . . . . Power . | . . . . . . Propulsion . | . . . . . . Utility . | . . . . . . Weapon . | . . . . . . Tool/Special . | . . . . . . Average Slot Usage (%) 67 | . . 57 80 73 67 Flight 34 | . . 36 40 31 28 Device 2 | . . . . 9 14 Processor 9 | . . 2 20 6 . Energy Cannon 4 | . . . . 19 16 Impact Weapon 14 | . . 18 20 6 . Peak Build Rating 42 | . . 10 10 42 42 Average Rating 13 | . . 6 10 32 27 On Entrance 10 | . . . 10 10 42 Avg Prop Armor Cover (%) . | . . . . . . Naked Turns 73 | . 48 25 . . . Heaviest Build 36 | . . 2 2 36 36 Greatest Support 25 | 3 3 10 10 25 25 Greatest Overweight (x) 1 | . . . . 1 1 Average Overweight (x) . | . . . . . . Largest Inventory Capacity . | . . . . . . Average Capacity . | . . . . . . Most Carried . | . . . . . . Average Carried . | . . . . . . Final Capacity . | . . . . . . Final Carried . | . . . . . . Class Distribution -------------------- 90% | Mutant 9% | Pyromaniac-Gunner Dominant Class ---------------- Mutant | -10/Materials Mutant | -9/Materials Mutant | -9/Mines Pyromaniac-Gunner | -9/Exiles Mutant | -8/Mines Resources | -11 -10 -9 -9 -9 -8 ----------- Run | Yrd Mat Mat Min Exi Min Matter Collected 366 | 55 . 175 20 . 116 Remotely . | . . . . . . Salvage Created 625 | . . 423 96 . 106 Parts 18 | . . 14 4 . . Haulers Intercepted . | . . . . . . Recyclers Shooed . | . . . . . . Parts Field Recycled . | . . . . . . Retrieved Matter . | . . . . . . Parts Self-Destructed . | . . . . . . Prevented . | . . . . . . Parts Restored . | . . . . . . Kills | -11 -10 -9 -9 -9 -8 ------- Run | Yrd Mat Mat Min Exi Min Combat Hostiles Destroyed 19 | . . 12 6 . 1 Melee 11 | . . 8 3 . . Guns 1 | . . . . . 1 Classes Destroyed 8 | . . 5 3 . . Worker 1 | . . 1 . . . Builder 3 | . . . 3 . . Tunneler 1 | . . . 1 . . Watcher 1 | . . 1 . . . Swarmer 4 | . . 3 1 . . Grunt 9 | . . 6 3 . . Sentry 3 | . . 3 . . . Assembled 2 | . . . 2 . . Best Kill Streak 5 | . . 5 4 . 1 Combat Bots Only 4 | . . 4 2 . 1 Max Kills in Single Turn 1 | . . 1 1 . 1 Gunslinging . | . . . . . . Exploded . | . . . . . . Melee 1 | . . 1 1 . . Uniques/NPCs Destroyed 1 | . . . . . 1 12-ASH (-8/Mines) Combat | -11 -10 -9 -9 -9 -8 -------- Run | Yrd Mat Mat Min Exi Min Hostile Shots Fired 170 | . 6 97 42 12 13 Missed 65 | . 2 44 15 1 3 Hits 105 | . 4 53 27 11 10 Melee 2 | . . . 2 . . Projectile 103 | . 4 53 25 11 10 Critical Strikes 2 | . . 1 . . 1 Damage Taken 1624 | . 60 642 350 317 255 Core 1407 | . 60 562 318 261 206 Absorbed by Shields . | . . . . . . Redirected to Core 765 | . . 274 107 203 181 Core Remaining (%) 95 | 100 90 . . . . Volleys Fired 12 | . . . . 1 11 Largest 1 | . . . . 1 1 Hottest 120 | . . . . 120 20 Shots Fired 12 | . . . . 1 11 Gun 11 | . . . . . 11 Cannon 1 | . . . . 1 . Launcher . | . . . . . . Special . | . . . . . . Kinetic 11 | . . . . . 11 Thermal 1 | . . . . 1 . Explosive . | . . . . . . Electromagnetic . | . . . . . . Robot Hit Streak 6 | . . . . 1 6 Robot Miss Streak 5 | . . . . . 5 Penetration Max . | . . . . . . Secondary Targets . | . . . . . . Shots Hit Robots 80 | . . 45 24 1 10 Core Hits 16 | . . 10 1 1 4 Critical Kills 2 | . . 2 . . . Critical Parts Destroyed 10 | . . 7 3 . . Critical Strikes 13 | . . 9 3 . 1 Smash 12 | . . 9 3 . . Sever 1 | . . . . . 1 Melee Attacks 106 | . . 48 55 . 3 Impact 103 | . . 48 55 . . Slashing 3 | . . . . . 3 Piercing . | . . . . . . Sneak Attacks 10 | . . 4 5 . 1 Combat Hostiles 5 | . . 3 1 . 1 Follow-up Attacks . | . . . . . . Damage Inflicted 2545 | . . 1123 947 32 443 Guns 309 | . . . . . 309 Cannons 32 | . . . . 32 . Explosions . | . . . . . . Melee 2204 | . . 1123 947 . 134 Ramming . | . . . . . . Kinetic 309 | . . . . . 309 Thermal 32 | . . . . 32 . Explosive . | . . . . . . Electromagnetic . | . . . . . . Impact 2070 | . . 1123 947 . . Slashing 134 | . . . . . 134 Piercing . | . . . . . . Highest Corruption . | . . . . . . Average Corruption . | . . . . . . Corruption Purged . | . . . . . . Corruption Blocked . | . . . . . . Overload Shots . | . . . . . . Overflow Damage 528 | . . 184 328 . 16 Projectiles . | . . . . . . Explosions . | . . . . . . Melee 528 | . . 184 328 . 16 Knockbacks 3 | . . . 3 . . Impact 3 | . . . 3 . . Kinetic . | . . . . . . Secondary . | . . . . . . Self-Inflicted Damage . | . . . . . . Shots . | . . . . . . Rammed . | . . . . . . Targets Rammed . | . . . . . . Kicked . | . . . . . . Crushed . | . . . . . . Highest Temperature 74 | . . . . 74 1 Average Temperature 29 | . . . . 41 1 Received Heat Transfer 348 | . 33 213 102 . . Siege Activations . | . . . . . . Martial Activations . | . . . . . . Shielding Activations . | . . . . . . Robots Disrupted . | . . . . . . Combat Hostiles . | . . . . . . Robots Corrupted 10 | . . 4 6 . . Combat Hostiles 7 | . . 4 3 . . Parts Fried 18 | . . 6 12 . . Impact Corruptions 26 | . . 11 15 . . Robots Melted . | . . . . . . Combat Hostiles . | . . . . . . Parts Melted . | . . . . . . Heat Transferred 80 | . . . . 80 . Parts Sabotaged . | . . . . . . Parts Stolen . | . . . . . . Parts Stripped . | . . . . . . Power Chain Reactions . | . . . . . . Alert | -11 -10 -9 -9 -9 -8 ------- Run | Yrd Mat Mat Min Exi Min Maximum Alert Level 1 | . . 1 . . . Low Security (%) 82 | 100 100 53 100 . 100 Level 1 17 | . . 46 . . . Level 2 . | . . . . . . Level 3 . | . . . . . . Level 4 . | . . . . . . Level 5 . | . . . . . . High Security . | . . . . . . Max Security . | . . . . . . Peak Influence 297 | . . 297 174 . 50 Initial 111 | . . . 111 . . Average 115 | . . 159 120 . 26 Influence Increases 778 | . . 447 260 . 71 Destroy 0b10 Robot/C 360 | . . 240 120 . . Destroy 0b10 Robot/NC 30 | . . 10 20 . . Destroy Leader 72 | . . 62 10 . . Allied During Kill 3 | . . . 3 . . Destroy Structure 13 | . . . 2 . 11 Partial Spotted 75 | . . 60 . . 15 Lose Combat Pursuer 225 | . . 75 105 . 45 Influence Decreases 747 | . . 160 402 145 40 Entered New Map 321 | . . . 176 145 . Time Decay 406 | . . 160 206 . 40 Lost Ally 20 | . . . 20 . . Squads Dispatched 3 | . . 2 1 . . Investigation 2 | . . 2 . . . Extermination . | . . . . . . Reinforcement 1 | . . . 1 . . Assault . | . . . . . . Garrison . | . . . . . . Intercept . | . . . . . . Searches Triggered . | . . . . . . Construction Impeded 1 | . . . 1 . . Haulers Reinforced . | . . . . . . Active Scanning Responses . | . . . . . . Cargo Convoy Interrupts . | . . . . . . Stealth | -11 -10 -9 -9 -9 -8 --------- Run | Yrd Mat Mat Min Exi Min Distress Signals 1 | . 1 . . . . Communications Jammed . | . . . . . . Distress Signals . | . . . . . . Times Spotted 53 | . 3 25 17 1 7 Peak Tracking Total 11 | . 3 8 4 11 5 Tactical Retreats 12 | . . 2 6 1 3 Traps | -11 -10 -9 -9 -9 -8 ------- Run | Yrd Mat Mat Min Exi Min Traps Triggered 2 | . 1 1 . . . Indirectly . | . . . . . . Trap Hack Attempts . | . . . . . . Triggered . | . . . . . . Disarmed . | . . . . . . Reprogrammed . | . . . . . . Reused . | . . . . . . Traps Extracted . | . . . . . . Installed . | . . . . . . Triggered . | . . . . . . Machines | -11 -10 -9 -9 -9 -8 ---------- Run | Yrd Mat Mat Min Exi Min Machines Disabled . | . . . . . . Max in Single Turn . | . . . . . . Machines Repaired . | . . . . . . Machines Dismantled . | . . . . . . Machines Sabotaged . | . . . . . . Overloaded Fab Kills . | . . . . . . Hacking | -11 -10 -9 -9 -9 -8 --------- Run | Yrd Mat Mat Min Exi Min Machines Accessed 2 | . . 1 . 1 . Terminals 1 | . . 1 . . . Fabricators . | . . . . . . Repair Stations . | . . . . . . Recycling Units . | . . . . . . Scanalyzers . | . . . . . . Garrison Access . | . . . . . . Total Hacks 3 | . . 2 . 1 . Successful 1 | . . . . 1 . Failed 2 | . . 2 . . . Catastrophic 1 | . . 1 . . . Database Lockouts . | . . . . . . Manual 3 | . . 2 . 1 . Terminals 2 | . . 2 . . . Fabricators . | . . . . . . Repair Stations . | . . . . . . Recycling Units . | . . . . . . Scanalyzers . | . . . . . . Garrison Access . | . . . . . . Terminal Hacks 1 | . . . . 1 . Proto ID Catalog 1 | . . . . 1 . Fabricator Hacks . | . . . . . . Repair Station Hacks . | . . . . . . Recycling Unit Hacks . | . . . . . . Scanalyzer . | . . . . . . Garrison Access Hacks . | . . . . . . Unauthorized Hacks . | . . . . . . Terminals . | . . . . . . Fabricators . | . . . . . . Repair Stations . | . . . . . . Recycling Units . | . . . . . . Scanalyzers . | . . . . . . Garrison Access . | . . . . . . Data Cores Recovered . | . . . . . . Used . | . . . . . . Hacking Detections 1 | . . 1 . . . Full Trace Events 1 | . . 1 . . . Feedback Events . | . . . . . . Feedback Blocked . | . . . . . . Robot Schematics Acquired . | . . . . . . Robots Built . | . . . . . . Authchips . | . . . . . . Time . | . . . . . . Total Robot Build Rating . | . . . . . . Part Schematics Acquired . | . . . . . . Parts Built . | . . . . . . Authchips . | . . . . . . Time . | . . . . . . Total Part Build Rating . | . . . . . . Part Studies Acquired . | . . . . . . Parts Repaired . | . . . . . . Time . | . . . . . . Parts Recycled . | . . . . . . Recycled Matter . | . . . . . . Retrieved Matter . | . . . . . . Retrieved Components . | . . . . . . Parts Scanalyzed . | . . . . . . Part Schematics Acquired . | . . . . . . Parts Damaged . | . . . . . . Bothacking | -11 -10 -9 -9 -9 -8 ------------ Run | Yrd Mat Mat Min Exi Min Used RIF Installer . | . . . . . . Robots Hacked . | . . . . . . Non-combat . | . . . . . . Combat . | . . . . . . Robot Hacks Applied . | . . . . . . Relay Couplers Released . | . . . . . . Fabnet Peak Effective % . | . . . . . . Robots Rewired . | . . . . . . Allies Hacked . | . . . . . . Hacks Repelled . | . . . . . . Allies | -11 -10 -9 -9 -9 -8 -------- Run | Yrd Mat Mat Min Exi Min Total Allies 1 | . . . 1 . . Largest Group 1 | . . . 1 . . Highest-Rated Group 31 | . . . 31 . . Highest-Rated Ally 31 | . . . 31 . . Total Orders . | . . . . . . Ally Attacks 9 | . . . 9 . . Total Damage 106 | . . . 106 . . Kills 2 | . . . 2 . . Allies Corrupted . | . . . . . . Allies Melted . | . . . . . . Intel | -11 -10 -9 -9 -9 -8 ------- Run | Yrd Mat Mat Min Exi Min Active Infowar (turns) 521 | . . 49 427 45 . Optics 519 | . . 49 427 43 . Cloaking 2 | . . . . 2 . Robot Analysis Total . | . . . . . . Derelict Logs Recovered 3 | . . . 3 . . Drone Launches . | . . . . . . Drone Recoveries . | . . . . . . Exploration | -11 -10 -9 -9 -9 -8 ------------- Run | Yrd Mat Mat Min Exi Min Turns Passed 1116 | 10 48 354 427 154 123 Spaces Moved 1576 | 20 95 470 580 216 195 Core 163 | 20 95 48 . . . Treads . | . . . . . . Legs . | . . . . . . Wheels . | . . . . . . Hover . | . . . . . . Flight 1413 | . . 422 580 216 195 Fastest Speed 37 | 50 50 37 37 37 37 Average Speed 42 | 50 50 38 37 68 39 Slowest Speed 107 | 50 50 50 37 107 107 Overloaded Moves . | . . . . . . Propulsion Burnouts . | . . . . . . Robots Hopped 2 | . . 1 . . 1 Potential Cave-ins . | . . . . . . Cave-ins Triggered . | . . . . . . Exploration Rate (%) 44 | 4 17 48 97 62 39 Regions Visited 5 Branch Regions 3 Pre-discovered Areas 1 | . . . 1 . . Known Exits Taken . | . . . . . . Unknown Exits Taken 5 | 1 1 1 1 1 . Scrap Searched 2 | . . . 1 . 1 Spaces Dug 2 | . . . 2 . . Terrain Destroyed 13 | . . . 2 . 11 Melee 2 | . . . 2 . . Projectile 11 | . . . . . 11 AOE . | . . . . . . Terrain Rammed . | . . . . . . Walls Destroyed . | . . . . . . Machines Disabled . | . . . . . . Actions | -11 -10 -9 -9 -9 -8 --------- Run | Yrd Mat Mat Min Exi Min Total 1812 | 19 94 556 695 220 228 Wait 91 | . . 25 49 . 17 Move 1567 | 19 94 467 579 215 193 Hop 2 | . . 1 . . 1 Pick Up . | . . . . . . Fast Attach 8 | . . 4 . 2 2 Attach . | . . . . . . Detach . | . . . . . . Swap 2 | . . 1 . 1 . Drop 3 | . . 1 . 1 1 Fire 12 | . . . . 1 11 Melee 106 | . . 48 55 . 3 Ram . | . . . . . . Kick . | . . . . . . Crush . | . . . . . . Escape Stasis . | . . . . . . Rewire . | . . . . . . Trap . | . . . . . . Miscellaneous 21 | . . 9 12 . . Route ------- -11/Scrapyard -10/Materials -9/Materials (discovered 3 exits: [*Mat x2] / [*Min]) -9/Mines (discovered 3 exits: [*Mat x2] / *Exi) -9/Exiles (discovered 2 exits: [*Min x2]) -8/Mines History --------- Turn | Location | Event 2 | -11/Scrapyard | Met Revision 17 3 | -11/Scrapyard | Discovered new exit (range 15) 11 | -11/Scrapyard | Entered Materials 42 | -10/Materials | Discovered new exit (range 9) 59 | -10/Materials | Entered another Materials area 61 | -9/Materials | Reached level 2 86 | -9/Materials | Upgraded with Propulsion slot (x1) 210 | -9/Materials | Core integrity fell below 50% 265 | -9/Materials | Discovered new exit (range 10) 306 | -9/Materials | Reached level 3 318 | -9/Materials | Build established: Mutant 342 | -9/Materials | Discovered new exit (range 16) 408 | -9/Materials | Discovered new exit (range 12) 413 | -9/Materials | Entered Mines 417 | -9/Mines | A weapon hastily lodged in a ceiling crevice suddenly fell to the ground 428 | -9/Mines | Discovered new exit (range 16) 431 | -9/Mines | Received a Mining Laser from a helpful Derelict 537 | -9/Mines | Learned 2 Materials zone layouts 543 | -9/Mines | Learned location of Zion (-6) 559 | -9/Mines | Learned 2 Materials zone layouts 563 | -9/Mines | Found a damaged Exp. Sensor Array with a note attached 591 | -9/Mines | Excavation squad dispatched 591 | -9/Mines | A large section of the Mines collapsed 621 | -9/Mines | Core integrity fell below 20% 624 | -9/Mines | Discovered new exit (range 7) 835 | -9/Mines | Deemed a non-threat by the Exiles lab entrance 836 | -9/Mines | Discovered new exit (range 5) 840 | -9/Mines | Entered Exiles 845 | -9/Exiles | Discovered new exit (range 17) 850 | -9/Exiles | Met 8R-AWN 856 | -9/Exiles | Met EX-HEX 866 | -9/Exiles | Met EX-BIN 871 | -9/Exiles | Reached level 4 871 | -9/Exiles | Aligned with FarCom system 871 | -9/Exiles | Given EX-Vault access code 880 | -9/Exiles | Opened EX-Vault 883 | -9/Exiles | Found Cloak of Protection 885 | -9/Exiles | Upgraded with Weapon slot (x1) 885 | -9/Exiles | Found Gui. Plasma Cannon 888 | -9/Exiles | Upgraded with Weapon slot (x1) 888 | -9/Exiles | Found YOLO Cannon 909 | -9/Exiles | Warned to stay clear of 0b10 Research branches 922 | -9/Exiles | Exiles lab attacked by MAIN.C 980 | -9/Exiles | Attacked by the Exiles 983 | -9/Exiles | Discovered new exit (range 14) 994 | -9/Exiles | Stole three prototypes: Gui. Plasma Cannon, Cloak of Protection, YOLO Cannon 994 | -9/Exiles | Entered Mines 1031 | -8/Mines | 12-ASH came to Exiles' defense 1082 | -8/Mines | Found Prototype Ballistic Gun 1082 | -8/Mines | Identified 12-ASH's Boomstick 1111 | -8/Mines | Destroyed 12-ASH 1117 | -8/Mines | Self-destructed Last Messages --------------- 01061_ Found Wheel. 01061_ Found Katana. 01061_ Found Grenade Launcher. 01061_ Found Airjet. 01061_ Found 38 Matter. 01062_ Acquired Katana. 01074_ Sneak attack on 12-ASH. 01074_ Destroyed Ripper. 01076_ Acquired 40 matter. 01079_ 12-ASH Prototype Ballistic Gun severed. 01082_ Acquired Prototype Ballistic Gun. 01082_ Identified 12-ASH's Boomstick. 01088_ U-05 Engineer builds a Wall. 01088_ Destroyed Lgt. Antimatter Reactor. 01089_ U-05 Engineer builds a Wall. 01093_ Destroyed Wheel. 01100_ Acquired 15 matter. 01106_ Acquired 12 matter. 01111_ 12-ASH destroyed. 01113_ Acquired 34 matter. Map ----- +----------------------------------------------------+ | ???????????????????????????? ## | | ?????????????????????????? #### | | ???????????????????????????###### #??## | | ???????????????????????????????## ##?# | | ???????????????????????????????# #?# ##%= | | ???????????????????????????????# #?## ### | | ???????????????????????????????# ##??####" | | ???????????????????????????????## #??????#%= | | ????????????????????????????????## #????### | | ?????????????????????????????????## #??###" | | ??????????????????????????????????# #??# | | ??????????????????????????????????# #??# | | ??????????????????????????????????# ##?## ] | | ???????????????????????????####???# "#??## | | ??????????????????????????## ##??# #??##"" ## | | ?????????????????????????## #### ####""" "#? | | ???????????????????????### % # ##? | | ??????????????????????## %[ %# ###" ##?? | | ?????????????????????## ##### #?## ##??? | | ?????????????????????# ==* ##?###???? | | ???????????????####### t === ##??????? | | ???????????????# ###""### #??????? | | ???????????????# ######?# ##?????? | | ???????????????# ##### ##???## ##????? | | ??????????????????????## #??## #????? | | ???????????????????????##@ #??# #????? | | ????????????????????????## ##??# #????? | | ?????????????????????????### #???# """ #????? | | ???????????????????????????## #???## """ ##???? | | ????????????????????????????## #????## """ #???? | | ?????????????????????????????? #?????# ##??? | | ?????????????????????????????? #?????# #??? | | ?????????????????????????????? #?????## #?? | | ?????????????????????????????? #??????##### #?? | | ?????????????????????????????? #??????????## #?? | | ?????????????????????????????? ????????????#####?? | | ?????????????????????????????? ??????????????????? | | ?????????????????????????????????????????????????? | | ?????????????????????????????????????????????????? | | ?????????????????????????????????????????????????? | | ?????????????????????????????????????????????????? | | ?????????????????????????????????????????????????? | | ?????????????????????????????????????????????????? | | ?????????????????????????????????????????????????? | | ?????????????????????????????????????????????????? | | ?????????????????????????????????????????????????? | | ?????????????????????????????????????????????????? | | ?????????????????????????????????????????????????? | | ?????????????????????????????????????????????????? | | ?????????????????????????????????????????????????? | +----------------------------------------------------+ Best States ------------- Heat Dissipation 25 Energy Generation 5 Energy Capacity 100 Matter Stores 300 Matter Capacity 300 Sight Range 18 Terrain Scan Density 10 Evasion (%) 62 Item Schematics ----------------- None Robot Schematics ------------------ None Fabricated ------------ Nothing Repaired ---------- Nothing Studied --------- None Alien Tech Used ----------------- None Achievements -------------- None Challenges ------------ None RPGLIKE | -11 -10 -9 -9 -9 -8 --------- Run | Yrd Mat Mat Min Exi Min Levels Raised 3 | . . 2 . 1 . XP Earned 8106 | 3000 100 3000 1156 350 500 XP Spent 7405 | . . 3200 385 3100 720 Upgrades 25 | . . 7 7 5 6 Propulsion Slot 1 | . . 1 . . . Weapon Slot 2 | . . . . 2 . Core Integrity 13 | . . . 7 . 6 Mass Support 3 | . . . . 3 . Melee Accuracy 6 | . . 6 . . . Protomatter Created 202 | . . 120 82 . . Integrity Restored 417 | . . 171 246 . . Core 417 | . . 171 246 . . Protomatter Decayed 50 | . . 36 6 1 7 Game ------ Seed TowerSuperdenseSlamshotty Manual? 0 Play Time 00:11:14 Cumulative 689.2 hours Start 2026.07.25 @ 15:45:38 End 2026.07.25 @ 15:55:21 Sessions 1 Manual Loads 0 Difficulty Rogue Special Mode Winter2019/RPGLIKE Game No. 352 Rogue 198 Adventurer 154 Explorer 0 Win Type - Total 24 Types 4/6/5/3/2/1/0/1/1/1 Lore% 95 Gallery% 89 Achievement% 68 Wizard Run 0 Options --------- Layout 0 ASCII 0 Keyboard 0 Movement Numpad Keybinds 0 Fullscreen 2 Font 18/SmallcapsGlow Map View 76x50 Zoom Use 0% Tactical HUD 1 Map Filters NONE Filters NONE Steam 1 RUN: 9976b050-4d20-4ee1-ac30-79111e246327